bitfinex/quotes_SOLUSD_20250107
["timestamp","ask_amount","ask_price","bid_price","bid_amount"]
[1736253303036,11.7185,213.34,213.28,9.29503173]
[1736253303236,11.7185,213.34,213.27,9.29503173]
[1736253303544,11.7185,213.34,213.21,23.776884]
[1736253303766,11.7185,213.34,213.23,9.29503173]
[1736253304643,11.7185,213.34,213.24,9.29503173]
[1736253306360,11.7185,213.34,213.26,9.29503173]
[1736253306546,11.7185,213.34,213.27,9.29503173]
[1736253307956,20.0,213.23,213.18,7.37416535]
[1736253308257,22.04,213.23,213.18,7.37416535]
[1736253308775,22.04,213.23,213.12,9.29503173]
[1736253309134,33.7648,213.23,213.12,9.29503173]
[1736253309457,33.7648,213.23,213.12,35.29503173]
[1736253310455,31.7248,213.23,213.12,35.29503173]
[1736253310762,33.7648,213.23,213.12,35.29503173]
[1736253311557,33.7648,213.23,213.05,7.37416535]
[1736253311558,20.0,213.18,213.05,7.37416535]
[1736253311864,1.5251,213.17,213.06,9.29503173]
[1736253312758,1.5251,213.17,213.07,9.29503173]
[1736253313430,1.5251,213.17,213.08,9.29503173]
[1736253313738,1.5251,213.17,213.09,9.29503173]
[1736253314459,1.5251,213.17,213.09,35.29503173]
[1736253315547,1.5251,213.17,213.11,9.29503173]
[1736253318665,1.5251,213.17,213.12,26.0]
[1736253324554,1.5251,213.17,213.11,9.29503173]
[1736253324948,2.04,213.22,213.13,9.29503173]
[1736253325155,8.0824,213.23,213.14,9.29503173]
[1736253325550,20.0,213.2,213.13,9.29503173]
[1736253326288,20.0,213.2,213.12,9.29503173]
[1736253326575,20.0,213.2,213.13,9.29503173]
[1736253327568,20.0,213.2,213.13,35.29503173]
[1736253328469,8.0824,213.23,213.15,9.29503173]
[1736253329175,8.0824,213.23,213.14,9.29503173]
[1736253331269,8.0824,213.23,213.13,9.29503173]
[1736253331465,8.0824,213.23,213.15,26.0]
[1736253334070,8.0824,213.23,213.15,35.29503173]
[1736253334375,11.7238,213.24,213.15,35.29503173]
[1736253334376,11.7238,213.24,213.15,9.29503173]
[1736253335660,11.7238,213.24,213.16,9.29503173]
[1736253335861,11.7238,213.24,213.15,9.29503173]
[1736253337381,11.7238,213.24,213.16,26.0]
[1736253337875,3.91758473,213.25,213.17,9.29503173]
[1736253338077,11.7223,213.27,213.18,9.29503173]
[1736253338380,8.151,213.28,213.18,9.29503173]
[1736253339186,8.151,213.28,213.18,23.776884]
[1736253340689,8.151,213.28,213.18,33.07191573]
[1736253340983,8.151,213.28,213.19,26.0]
[1736253341482,8.151,213.28,213.19,35.29503173]
[1736253341672,8.151,213.28,213.19,9.29503173]
[1736253341995,8.151,213.28,213.2,9.29503173]
[1736253342162,8.151,213.28,213.19,9.29503173]
[1736253342361,8.151,213.28,213.2,9.29503173]
[1736253344580,8.151,213.28,213.21,26.0]
[1736253345397,8.151,213.28,213.21,35.29503173]
[1736253345598,8.151,213.28,213.21,26.0]
[1736253346099,8.151,213.28,213.17,33.77525058]
[1736253346480,8.151,213.28,213.18,9.29503173]
[1736253346788,8.151,213.28,213.17,24.48021885]
[1736253347001,8.151,213.28,213.17,23.776884]
[1736253347002,19.8731,213.28,213.17,23.776884]
[1736253348072,19.8731,213.28,213.15,12.03845984]
[1736253348275,19.8731,213.28,213.16,23.776884]
[1736253348483,19.8731,213.28,213.16,33.07191573]
[1736253348879,19.8731,213.28,213.19,9.29503173]
[1736253349182,19.8731,213.28,213.19,26.0]
[1736253349895,19.8731,213.28,213.17,9.99846697]
[1736253352968,19.8731,213.28,213.2,26.0]
[1736253356100,8.151,213.28,213.18,33.07191573]
[1736253356276,8.151,213.28,213.2,23.776884]
[1736253358418,8.151,213.28,213.21,0.70329181]
[1736253358617,19.496,213.34,213.23,9.29503173]
[1736253358805,20.0,213.31,213.22,23.776884]
[1736253358983,20.0,213.31,213.24,23.776884]
[1736253359203,20.0,213.31,213.24,26.0]
[1736253359905,31.72,213.31,213.24,26.0]
[1736253360808,31.72,213.31,213.18,0.70328451]
[1736253361105,31.72,213.31,213.18,23.776884]
[1736253363808,31.72,213.31,213.19,26.0]
[1736253364492,31.72,213.31,213.18,23.776884]
[1736253365106,31.72,213.31,213.17,0.70336942]
[1736253365313,7.9161,213.3,213.16,2.04]
[1736253365803,20.0,213.27,213.14,2.04]
[1736253366401,20.0,213.27,213.15,23.776884]
[1736253366806,11.7227,213.26,213.15,23.776884]
[1736253367517,11.7227,213.26,213.16,26.0]
[1736253369716,11.6646173,213.26,213.16,26.0]
[1736253378599,11.6646173,213.26,213.16,9.29503173]
[1736253379347,11.6646173,213.26,213.17,9.29503173]
[1736253379636,11.6646173,213.26,213.18,9.29503173]
[1736253381643,11.6646173,213.26,213.18,35.29503173]
[1736253382441,20.0,213.27,213.18,35.29503173]
[1736253382680,20.0,213.27,213.18,9.29503173]
[1736253383233,20.0,213.27,213.19,23.776884]
[1736253383561,20.0,213.27,213.19,33.07191573]
[1736253384059,20.0,213.27,213.2,9.29503173]
[1736253384424,19.637,213.3,213.2,9.29503173]
[1736253384425,19.637,213.3,213.21,23.776884]
[1736253384632,19.637,213.3,213.2,33.07191573]
[1736253385560,19.637,213.3,213.22,26.0]
[1736253400301,19.637,213.3,213.22,9.29503173]
[1736253400604,19.637,213.3,213.2,41.14935808]
[1736253401007,19.637,213.3,213.2,40.44608108]
[1736253401190,19.637,213.3,213.21,9.29503173]
[1736253403212,19.637,213.3,213.22,26.0]
[1736253403705,19.637,213.3,213.2,7.37416535]
[1736253404099,19.637,213.3,213.19,7.37416535]
[1736253404395,19.637,213.3,213.18,144.07416535]
[1736253406580,19.637,213.3,213.21,26.0]
[1736253408421,19.637,213.3,213.18,16.66919708]
[1736253408422,19.637,213.3,213.19,9.29503173]
[1736253409708,19.637,213.3,213.2,9.29503173]
[1736253410707,19.637,213.3,213.19,16.66919708]
[1736253411415,19.637,213.3,213.23,26.0]
[1736253414613,20.0,213.27,213.23,26.0]
[1736253415217,31.7225,213.27,213.19,7.37416535]
[1736253416100,31.7225,213.27,213.14,7.37416535]
[1736253416406,55.1669,213.27,213.14,7.37416535]
[1736253416794,55.1669,213.27,213.13,7.37416535]
[1736253416994,55.1669,213.27,213.13,16.66919708]
[1736253417613,55.1669,213.27,213.13,7.37416535]
[1736253418203,61.48018813,213.27,213.17,26.0]
[1736253420218,55.1669,213.27,213.17,26.0]
[1736253420722,20.0,213.22,213.12,7.37416535]
[1736253421401,20.0,213.22,213.11,7.37416535]
[1736253422030,11.7255,213.21,213.11,7.37416535]
[1736253423527,11.7255,213.21,213.1,16.66919708]
[1736253423707,11.7255,213.21,213.11,26.0]
[1736253427830,11.7255,213.21,213.11,35.29503173]
[1736253428033,11.7255,213.21,213.12,9.29503173]
[1736253428625,11.7255,213.21,213.11,35.29503173]
[1736253428832,1.6606,213.2,213.11,35.29503173]
[1736253429036,6.2174,213.19,213.11,26.0]
[1736253429405,20.0,213.16,213.11,26.0]
[1736253429598,20.0,213.16,213.1,7.37416535]
[1736253430224,20.0,213.16,213.06,16.66919708]
[1736253430607,31.7285,213.16,213.06,16.66919708]
[1736253431131,31.7285,213.16,213.06,9.29503173]
[1736253431307,31.7285,213.16,213.07,9.29503173]
[1736253432330,31.7285,213.16,213.06,9.29503173]
[1736253432516,31.7285,213.16,213.07,26.0]
[1736253432917,31.7285,213.16,213.07,35.29503173]
[1736253433129,31.7285,213.16,213.08,9.29503173]
[1736253433314,20.0,213.16,213.11,9.29503173]
[1736253433504,20.0,213.16,213.12,9.29503173]
[1736253434205,20.0,213.16,213.11,9.29503173]
[1736253434722,20.0,213.16,213.07,0.70380731]
[1736253434923,20.0,213.16,213.09,9.29503173]
[1736253436307,20.0,213.16,213.08,9.29503173]
[1736253436534,20.0,213.16,213.04,26.93113627]
[1736253436709,11.7288,213.15,213.06,9.29503173]
[1736253437049,11.7288,213.15,213.07,9.29503173]
[1736253438031,11.7288,213.15,213.02,8.90436535]
[1736253438237,11.7288,213.15,213.05,9.29503173]
[1736253438417,1.5807,213.14,213.05,9.29503173]
[1736253438806,1.5807,213.14,213.01,46.28499211]
[1736253438807,6.1435,213.13,213.03,9.29503173]
[1736253439104,6.1435,213.13,213.01,2.04]
[1736253439309,6.1435,213.13,213.03,26.0]
[1736253439528,6.1435,213.13,213.03,35.29503173]
[1736253439830,23.776884,213.12,213.03,26.0]
[1736253440033,11.731,213.11,213.02,9.29503173]
[1736253441523,11.731,213.11,213.04,9.29503173]
[1736253441716,6.1435,213.13,213.06,9.29503173]
[1736253441947,6.1435,213.13,213.07,9.29503173]
[1736253442528,6.1435,213.13,213.08,9.29503173]
[1736253443029,6.1435,213.13,213.08,35.29503173]
[1736253443535,1.5807,213.14,213.1,9.29503173]
[1736253443742,6.0546,213.18,213.13,9.29503173]
[1736253444046,6.0546,213.18,213.14,9.29503173]
[1736253445521,6.0546,213.18,213.13,9.29503173]
[1736253445724,6.0546,213.18,213.12,9.29503173]
[1736253446740,6.0546,213.18,213.13,26.0]
[1736253447536,6.0546,213.18,213.13,35.29503173]
[1736253447746,6.0546,213.18,213.13,26.0]
[1736253448954,6.0546,213.18,213.13,35.29503173]
[1736253450345,1.6528,213.19,213.13,35.29503173]
[1736253451649,21.6528,213.19,213.13,26.0]
[1736253454420,1.6528,213.19,213.1,9.29503173]
[1736253455033,1.6528,213.19,213.12,9.29503173]
[1736253456032,1.6528,213.19,213.13,9.29503173]
[1736253456450,1.6528,213.19,213.12,9.29503173]
[1736253457342,1.6528,213.19,213.13,26.0]
[1736253458271,31.7265,213.2,213.14,9.29503173]
[1736253458426,20.0,213.2,213.14,9.29503173]
[1736253460054,20.0,213.2,213.13,9.29503173]
[1736253460524,20.0,213.19,213.1,9.29503173]
[1736253461438,31.7264,213.2,213.13,26.0]
[1736253464949,31.7264,213.2,213.1,9.29503173]
[1736253465827,31.7264,213.2,213.07,7.37416535]
[1736253465828,43.776884,213.16,213.07,7.37416535]
[1736253466855,20.0,213.12,213.05,9.29503173]
[1736253467351,11.7288,213.15,213.05,9.29503173]
[1736253468776,11.7288,213.15,213.06,9.29503173]
[1736253469629,20.0,213.15,213.06,9.29503173]
[1736253471975,20.0,213.13,213.06,9.29503173]
[1736253472726,11.7293,213.14,213.06,9.29503173]
[1736253473356,11.7293,213.14,213.03,7.37416535]
[1736253473531,11.7293,213.14,213.05,9.29503173]
[1736253475956,4.80186353,213.22,213.05,9.29503173]
[1736253475957,9.9285,213.24,213.12,9.29503173]
[1736253476347,7.8885,213.24,213.12,9.29503173]
[1736253476555,9.9285,213.24,213.12,9.29503173]
[1736253476763,20.0,213.2,213.12,9.29503173]
[1736253481368,20.0,213.2,213.14,9.29503173]
[1736253482072,20.0,213.2,213.13,9.29503173]
[1736253483770,20.0,213.2,213.14,9.29503173]
[1736253484068,21.6525,213.24,213.14,9.29503173]
[1736253484648,20.0,213.21,213.14,9.29503173]
[1736253485474,20.0,213.21,213.1,7.37416535]
[1736253485648,20.0,213.21,213.12,9.29503173]
[1736253486365,20.0,213.21,213.09,7.37416535]
[1736253486570,11.726,213.2,213.09,7.37416535]
[1736253486757,11.726,213.2,213.11,9.29503173]
[1736253487145,11.726,213.2,213.12,9.29503173]
[1736253487772,7.8885,213.24,213.14,9.29503173]
[1736253487958,11.7244,213.23,213.15,9.29503173]
[1736253488358,11.7244,213.23,213.14,9.29503173]
[1736253489249,11.7244,213.23,213.12,1.605]
[1736253489450,20.0,213.2,213.11,9.29503173]
[1736253489883,20.0,213.2,213.1,9.29503173]
[1736253490771,11.7261,213.2,213.1,9.29503173]
[1736253495985,11.7261,213.2,213.09,7.37416535]
[1736253496288,11.7261,213.2,213.09,16.66919708]
[1736253496464,11.7261,213.2,213.1,9.29503173]
[1736253496962,11.7261,213.2,213.11,9.29503173]
[1736253498975,11.7261,213.2,213.1,7.37416535]
[1736253499373,11.7261,213.2,213.09,16.66919708]
[1736253500282,11.7261,213.2,213.09,7.37416535]
[1736253501283,11.7271,213.18,213.09,7.37416535]
[1736253501472,11.7271,213.18,213.09,16.66919708]
[1736253503061,11.7271,213.18,213.11,9.29503173]
[1736253503264,11.7271,213.18,213.1,9.29503173]
[1736253504368,11.7271,213.18,213.09,16.66919708]
[1736253505393,11.7271,213.18,213.09,9.29503173]
[1736253506084,11.7271,213.18,213.08,33.37416535]
[1736253506290,11.7271,213.18,213.1,9.29503173]
[1736253508999,11.7271,213.18,213.09,16.66919708]
[1736253509796,11.7271,213.18,213.09,9.29503173]
[1736253513199,11.7271,213.18,213.08,7.37416535]
[1736253513400,11.7271,213.18,213.09,9.29503173]
[1736253518604,11.7271,213.18,213.08,7.37416535]
[1736253518605,11.7271,213.18,213.08,16.66919708]
[1736253520471,11.7271,213.18,213.08,7.37416535]
[1736253520895,11.7271,213.18,213.08,16.66919708]
[1736253521093,7.9477,213.17,213.08,7.37416535]
[1736253521292,20.0,213.14,213.08,7.37416535]
[1736253521683,20.0,213.14,213.07,7.37416535]
[1736253522410,11.7299,213.13,213.05,7.37416535]
[1736253523195,11.7299,213.13,213.04,16.66919708]
[1736253524608,11.7299,213.13,213.04,9.29503173]
[1736253526190,20.0,213.1,213.03,7.37416535]
[1736253526407,20.0,213.1,213.04,9.29503173]
[1736253534014,20.0,213.1,213.05,9.29503173]
[1736253534314,20.0,213.12,213.05,9.29503173]
[1736253535726,20.0,213.12,213.06,9.29503173]
[1736253537126,20.0,213.14,213.06,9.29503173]
[1736253537318,20.0,213.12,213.06,9.29503173]
[1736253538420,20.0,213.14,213.06,9.29503173]
[1736253538619,20.0,213.12,213.06,9.29503173]
[1736253538822,20.0,213.12,213.05,9.29503173]
[1736253539626,20.0,213.1,213.05,9.29503173]
[1736253541631,20.0,213.14,213.05,9.29503173]
[1736253541830,20.0,213.12,213.05,9.29503173]
[1736253543719,11.731,213.11,213.05,9.29503173]
[1736253548415,11.731,213.11,213.07,9.29503173]
[1736253548722,11.731,213.11,213.06,9.29503173]
[1736253549109,11.731,213.11,213.02,2.04]
[1736253549413,20.0,213.13,213.04,9.29503173]
[1736253550534,20.0,213.13,213.03,9.29503173]
[1736253550745,11.7304,213.12,213.03,9.29503173]
[1736253551343,11.7304,213.12,213.04,9.29503173]
[1736253555535,35.1913,213.12,213.02,7.37416535]
[1736253555732,35.1913,213.12,213.02,16.66919708]
[1736253556049,35.1913,213.12,213.02,9.29503173]
[1736253557647,35.1913,213.12,213.01,16.66919708]
[1736253557833,11.7304,213.12,213.03,9.29503173]
[1736253558039,11.7304,213.12,213.04,9.29503173]
[1736253558651,11.7304,213.12,213.01,7.37416535]
[1736253558952,11.7304,213.12,213.01,16.66919708]
[1736253559734,11.7304,213.12,213.01,7.37416535]
[1736253559929,11.7304,213.12,213.02,9.29503173]
[1736253560124,11.7304,213.12,213.03,9.29503173]
[1736253561157,11.7304,213.12,213.04,9.29503173]
[1736253562141,11.7304,213.12,213.05,9.29503173]
[1736253563365,11.7304,213.12,213.06,9.29503173]
[1736253568464,11.7304,213.12,213.05,33.07191573]
[1736253569250,11.7304,213.12,213.05,23.776884]
[1736253570864,11.7304,213.12,213.05,31.15104935]
[1736253571043,11.7304,213.12,213.05,40.44608108]
[1736253571243,11.7304,213.12,213.06,9.29503173]
[1736253572568,11.7304,213.12,213.06,16.66919708]
[1736253575853,11.7304,213.12,213.08,9.29503173]
[1736253576051,20.0,213.13,213.07,23.776884]
[1736253576052,11.7289,213.15,213.11,9.29503173]
[1736253576459,90.0233,213.22,213.11,9.29503173]
[1736253576668,31.7271,213.19,213.11,9.29503173]
[1736253577349,31.7271,213.19,213.11,16.66919708]
[1736253577552,31.7271,213.19,213.11,7.37416535]
[1736253577766,31.7271,213.19,213.1,7.37416535]
[1736253578381,31.7271,213.19,213.1,23.776884]
[1736253580050,31.7271,213.19,213.11,9.29503173]
[1736253580250,31.7271,213.19,213.1,33.07191573]
[1736253586252,31.7271,213.19,213.11,9.29503173]
[1736253587978,31.7271,213.19,213.12,23.776884]
[1736253590079,31.7271,213.19,213.13,9.29503173]
[1736253590452,31.7271,213.19,213.14,23.776884]
[1736253590655,31.7271,213.19,213.12,9.29503173]
[1736253591283,31.7271,213.19,213.12,23.776884]
[1736253592983,31.7271,213.19,213.12,9.29503173]
[1736253593778,31.7271,213.19,213.12,23.776884]
[1736253597290,31.7271,213.19,213.12,9.29503173]
[1736253597475,31.7271,213.19,213.12,23.776884]
[1736253597676,31.7271,213.19,213.12,33.07191573]
[1736253600208,31.7271,213.19,213.12,23.776884]
[1736253602117,31.7271,213.19,213.1,33.07191573]
[1736253605797,31.7271,213.19,213.08,7.37416535]
[1736253606001,11.7271,213.19,213.08,9.41416535]
[1736253606200,11.7271,213.19,213.1,9.29503173]
[1736253609076,11.7271,213.19,213.09,33.07191573]
[1736253609405,11.7271,213.19,213.09,23.776884]
[1736253609977,20.0,213.16,213.09,23.776884]
[1736253610802,20.0,213.16,213.08,23.776884]
[1736253611298,20.0,213.18,213.08,23.776884]
[1736253611508,20.0,213.17,213.08,23.776884]
[1736253612306,20.0,213.17,213.08,9.29503173]
[1736253612482,11.7282,213.16,213.08,9.29503173]
[1736253612990,11.7282,213.16,213.08,23.776884]
[1736253614903,11.7293,213.14,213.06,7.37416535]
[1736253615818,11.7293,213.14,213.05,31.15104935]
[1736253618204,11.7293,213.14,213.04,23.776884]
[1736253620109,20.0,213.11,213.04,23.776884]
[1736253621409,20.0,213.12,213.04,23.776884]
[1736253621591,20.0,213.11,213.04,33.07191573]
[1736253621789,20.0,213.11,213.04,23.776884]
[1736253622511,20.0,213.12,213.04,23.776884]
[1736253622695,31.731,213.12,213.04,23.776884]
[1736253625379,31.731,213.12,213.04,33.07191573]
[1736253626412,31.731,213.12,213.05,9.29503173]
[1736253626615,13.2567,213.15,213.06,33.07191573]
[1736253627112,20.0,213.12,213.06,33.07191573]
[1736253627410,20.0,213.12,213.06,23.776884]
[1736253628005,11.7305,213.12,213.06,23.776884]
[1736253630612,11.7305,213.12,213.06,33.07191573]
[1736253630817,11.7305,213.12,213.06,9.29503173]
[1736253636216,11.7305,213.12,213.08,9.29503173]
[1736253636410,11.729,213.15,213.09,9.29503173]
[1736253639142,11.729,213.15,213.09,23.776884]
[1736253643029,11.729,213.15,213.09,9.29503173]
[1736253643327,11.729,213.15,213.09,23.776884]
[1736253643922,11.729,213.15,213.08,23.776884]
[1736253644225,11.729,213.15,213.05,7.37416535]
[1736253644400,11.729,213.15,213.05,16.66919708]
[1736253644799,11.729,213.15,213.06,33.07191573]
[1736253645211,11.729,213.15,213.08,33.07191573]
[1736253649440,20.0,213.16,213.09,9.29503173]
[1736253650535,20.0,213.16,213.1,23.776884]
[1736253650717,11.7285,213.16,213.1,9.29503173]
[1736253651119,11.7285,213.16,213.09,33.07191573]
[1736253651320,11.7285,213.16,213.1,9.29503173]
[1736253652517,4.51868413,213.22,213.09,23.776884]
[1736253652518,1.5615,213.25,213.16,23.776884]
[1736253653435,11.7249,213.23,213.16,23.776884]
[1736253654915,20.0,213.23,213.16,9.29503173]
[1736253656134,1.5615,213.25,213.16,9.29503173]
[1736253656347,17.8873,213.26,213.18,9.29503173]
[1736253656653,17.8873,213.26,213.18,23.776884]
[1736253657026,11.7228,213.26,213.18,23.776884]
[1736253657344,81.9,213.29,213.18,23.776884]
[1736253657345,11.7211,213.29,213.18,23.776884]
[1736253657538,20.0,213.26,213.2,23.776884]
[1736253658246,20.0,213.26,213.19,23.776884]
[1736253661949,20.0,213.26,213.18,23.776884]
[1736253665456,20.0,213.26,213.16,33.07191573]
[1736253665633,20.0,213.26,213.18,23.776884]
[1736253666837,20.0,213.26,213.18,9.29503173]
[1736253667453,20.0,213.26,213.18,23.776884]
[1736253668643,20.0,213.26,213.17,9.29503173]
[1736253668948,20.0,213.26,213.16,23.776884]
[1736253668949,20.0,213.27,213.16,33.07191573]
[1736253669258,20.0,213.27,213.13,143.1218]
[1736253669259,31.7226,213.27,213.13,143.1218]
[1736253669431,31.7226,213.27,213.14,2.04]
[1736253669753,31.7226,213.27,213.15,23.776884]
[1736253671668,31.7226,213.27,213.15,33.07191573]
[1736253676662,31.7226,213.27,213.16,9.29503173]
[1736253677461,31.7226,213.27,213.18,23.776884]
[1736253679062,31.7226,213.27,213.18,9.29503173]
[1736253680462,11.7226,213.27,213.18,9.29503173]
[1736253680667,13.3604,213.3,213.2,9.29503173]
[1736253682108,13.3604,213.3,213.2,23.776884]
[1736253682860,11.7173,213.36,213.29,9.29503173]
[1736253683049,11.7173,213.36,213.24,0.70313631]
[1736253683267,11.7173,213.36,213.25,11.33503173]
[1736253683445,20.0,213.33,213.26,23.776884]
[1736253684561,20.0,213.34,213.25,23.776884]
[1736253684748,20.0,213.33,213.25,25.816884]
[1736253686686,11.7191,213.33,213.23,23.776884]
[1736253686872,20.0,213.33,213.23,23.776884]
[1736253687171,20.0,213.33,213.22,23.776884]
[1736253687383,20.0,213.33,213.21,2.04]
[1736253687384,20.0,213.29,213.18,2.04]
[1736253687577,20.0,213.29,213.13,1.6387]
[1736253687750,20.0,213.29,213.16,2.04]
[1736253687946,20.0,213.29,213.17,23.776884]
[1736253688769,11.7216,213.28,213.17,23.776884]
[1736253689964,11.7216,213.28,213.17,33.07191573]
[1736253690769,11.7216,213.28,213.19,9.29503173]
[1736253690974,11.7216,213.28,213.19,23.776884]
[1736253691574,11.7216,213.28,213.16,2.04]
[1736253691962,11.7216,213.28,213.17,23.776884]
[1736253692679,11.7216,213.28,213.17,33.07191573]
[1736253693277,11.7216,213.28,213.19,33.07191573]
[1736253693962,11.7216,213.28,213.19,59.07191573]
[1736253695282,11.7216,213.28,213.19,49.776884]
[1736253696753,11.7216,213.28,213.16,11.33503173]
[1736253697585,11.7216,213.28,213.17,23.776884]
[1736253698773,11.7216,213.28,213.17,33.07191573]
[1736253699655,11.7216,213.28,213.17,59.07191573]
[1736253699968,11.7216,213.28,213.19,23.776884]
[1736253701367,11.7216,213.28,213.16,2.04]
[1736253702082,11.7216,213.28,213.17,23.776884]
[1736253702483,7.6129,213.27,213.17,23.776884]
[1736253702696,11.7227,213.26,213.17,23.776884]
[1736253707675,11.7227,213.26,213.16,23.776884]
[1736253713686,20.0,213.23,213.16,23.776884]
[1736253714278,20.0,213.23,213.14,23.776884]
[1736253714996,11.7249,213.22,213.14,23.776884]
[1736253715294,11.7249,213.22,213.14,33.07191573]
[1736253716586,11.7249,213.22,213.14,23.776884]
[1736253719899,11.7249,213.22,213.14,33.07191573]
[1736253720200,35.1682,213.26,213.14,33.07191573]
[1736253720576,20.0,213.23,213.14,33.07191573]
[1736253721605,11.7249,213.22,213.14,33.07191573]
[1736253721812,11.7249,213.22,213.14,9.29503173]
[1736253721987,11.7249,213.22,213.13,9.29503173]
[1736253722304,8.1477,213.21,213.12,9.29503173]
[1736253723893,8.1477,213.21,213.13,23.776884]
[1736253725378,8.1477,213.21,213.13,9.29503173]
[1736253725584,8.1477,213.21,213.15,9.29503173]
[1736253726185,8.1477,213.21,213.15,23.776884]
[1736253727306,8.1477,213.21,213.14,9.29503173]
[1736253727605,8.1477,213.21,213.13,9.29503173]
[1736253727808,8.1477,213.21,213.14,9.29503173]
[1736253728804,8.1477,213.21,213.11,7.37416535]
[1736253728805,20.0,213.18,213.11,7.37416535]
[1736253729005,11.7277,213.17,213.11,7.37416535]
[1736253729211,11.7277,213.17,213.09,16.66919708]
[1736253729413,11.7277,213.17,213.1,23.776884]
[1736253729591,11.7277,213.17,213.09,16.66919708]
[1736253729986,11.7277,213.17,213.1,23.776884]
[1736253729987,20.0,213.17,213.1,23.776884]
[1736253731010,13.65357448,213.2,213.1,23.776884]
[1736253731011,20.0,213.18,213.1,23.776884]
[1736253731214,20.0,213.17,213.1,23.776884]
[1736253732587,20.0,213.17,213.1,9.29503173]
[1736253733515,11.7279,213.17,213.1,9.29503173]
[1736253733807,11.7279,213.17,213.09,9.29503173]
[1736253734012,11.7279,213.17,213.1,23.776884]
[1736253734390,11.7279,213.17,213.1,9.29503173]
[1736253735192,11.7279,213.17,213.11,9.29503173]
[1736253736588,11.7279,213.17,213.12,23.776884]
[1736253737612,11.7279,213.17,213.07,0.70374381]
[1736253737803,11.7279,213.17,213.1,9.29503173]
[1736253738318,11.7279,213.17,213.1,23.776884]
[1736253739813,11.7279,213.17,213.1,9.29503173]
[1736253740921,11.7279,213.17,213.12,23.776884]
[1736253743220,11.7279,213.17,213.12,9.29503173]
[1736253744520,31.5992,213.21,213.16,9.29503173]
[1736253744521,11.726,213.2,213.16,9.29503173]
[1736253746420,11.726,213.2,213.15,9.29503173]
[1736253747721,11.726,213.2,213.14,9.29503173]
[1736253748022,11.726,213.2,213.14,23.776884]
[1736253751133,11.726,213.2,213.14,9.29503173]
[1736253753728,11.726,213.2,213.12,9.29503173]
[1736253755833,11.726,213.2,213.14,23.776884]
[1736253756135,11.726,213.2,213.14,9.29503173]
[1736253763451,11.726,213.2,213.14,23.776884]
[1736253765441,11.726,213.2,213.14,9.29503173]
[1736253765625,11.726,213.2,213.16,9.29503173]
[1736253766638,20.0,213.23,213.16,9.29503173]
[1736253766941,20.0,213.22,213.16,9.29503173]
[1736253767442,20.0,213.22,213.16,23.776884]
[1736253768146,20.0,213.23,213.14,9.29503173]
[1736253768352,20.0,213.22,213.14,9.29503173]
[1736253768851,20.0,213.22,213.15,23.776884]
[1736253769289,11.7252,213.22,213.15,23.776884]
[1736253777279,11.7252,213.22,213.15,9.29503173]
[1736253777491,7.6343,213.26,213.17,9.29503173]
[1736253777786,7.6343,213.26,213.19,23.776884]
[1736253777787,11.7233,213.25,213.19,23.776884]
[1736253779248,11.7233,213.25,213.19,9.29503173]
[1736253779668,11.7233,213.25,213.2,9.29503173]
[1736253779996,11.7233,213.25,213.19,9.29503173]
[1736253780899,11.7233,213.25,213.2,9.29503173]
[1736253781097,11.7233,213.25,213.21,23.776884]
[1736253781281,11.7233,213.25,213.21,33.07191573]
[1736253781602,11.7233,213.25,213.21,23.776884]
[1736253782409,14.79762691,213.27,213.23,23.776884]
[1736253782786,14.79762691,213.27,213.23,9.29503173]
[1736253782993,7.6341,213.31,213.25,23.776884]
[1736253783303,11.7205,213.3,213.25,23.776884]